Workbook

Sheet 1
A1: Школа | B1: МБОУ "СОШ №1" | E1: Отд./корп | I1: День | J1: XI
A3: Прием пищи | B3: Раздел | C3: № рец. | D3: Блюдо | E3: Выход, г | F3: Цена | G3: Калорийность | H3: Белки | I3: Жиры | J3: Углеводы
A4: Завтрак | B4: закуска | C4: 541бз-2020 | D4: Винегрет с растительным маслом | E4: 60 | F4: 10.43 | G4: 67.10 | H4: 0.70 | I4: 5.40 | J4: 4.00
B5: гор.блюдо | C5: ='[1] 7-10'!A163 -> 54-1г-2020 | D5: ='[1] 7-10'!B163 -> Спагетти отварные | E5: ='[1] 7-10'!C163 -> 150 | F5: 21.09 | G5: ='[1] 7-10'!G163 -> 196.80 | H5: ='[1] 7-10'!D163 -> 5.30 | I5: ='[1] 7-10'!E163 -> 4.90 | J5: ='[1] 7-10'!F163 -> 32.80
B6: гор.блюдо | C6: ='[1] 7-10'!A164 -> 54-2м-2020 | D6: ='[1] 7-10'!B164 -> Гуляш из говядины | E6: 100 | F6: 35.83 | G6: ='[1] 7-10'!G164 -> 130.80 | H6: ='[1] 7-10'!D164 -> 6.99 | I6: ='[1] 7-10'!E164 -> 6.54 | J6: ='[1] 7-10'!F164 -> 8.30
B7: гор.напиток | C7: 54-2гн-2020 | D7: Чай с сахаром | E7: 200 | F7: 3.70 | G7: 26.80 | H7: 0.19 | I7: 0.04 | J7: 6.42
B8: хлеб | C8: ='[2]1'!C8 -> пром | D8: ='[2]1'!D8 -> Хлеб пшеничный. Ржаной | E8: ='[2]1'!E8 -> 40 | F8: ='[2]1'!F8 -> 3.72 | G8: ='[2]1'!G8 -> 81.10 | H8: ='[2]1'!H8 -> 2.82 | I8: ='[2]1'!I8 -> 0.36 | J8: ='[2]1'!J8 -> 16.54
B9: сладкое
A10: Завтрак 2 | B10: фрукты
A13: Обед | B13: закуска
B14: 1 блюдо
B15: 2 блюдо
B16: гарнир
B17: сладкое
B18: хлеб бел.
B19: хлеб черн.
E21: =SUM(E4:E20) -> 550.00 | F21: =SUM(F4:F20) -> 74.77 | G21: 502.60 | H21: 16.00 | I21: 17.24 | J21: 68.06
